fUSD/lending_fUSD_20250112
["ID","MTS","AMOUNT","RATE_DAILY","PERIOD"]
[348635131,1736692234967,-500.0,9.969e-05,2]
[348635132,1736692234976,-500.0,9.969e-05,2]
[348635133,1736692234987,-500.0,9.969e-05,2]
[348635134,1736692234997,-500.0,9.969e-05,2]
[348635135,1736692235007,-500.0,9.969e-05,2]
[348635136,1736692235017,-500.0,9.969e-05,2]
[348635137,1736692235026,-500.0,9.969e-05,2]
[348635138,1736692235036,-500.0,9.969e-05,2]
[348635139,1736692235046,-502.43526942,9.969e-05,2]
[348635140,1736692235056,-500.0,9.969e-05,2]
[348635141,1736692235067,-500.0,9.969e-05,2]
[348635142,1736692235077,-500.0,9.969e-05,2]
[348635143,1736692235087,-500.0,9.969e-05,2]
[348635144,1736692235096,-500.0,9.969e-05,2]
[348635145,1736692235106,-500.0,9.969e-05,2]
[348635146,1736692235116,-503.25160023,9.969e-05,2]
[348635147,1736692235126,-589.05,9.969e-05,2]
[348635148,1736692235136,-507.13279305,9.969e-05,2]
[348635149,1736692235147,-570.04644014,9.969e-05,2]
[348635150,1736692235158,-500.0,9.969e-05,2]
[348635151,1736692235167,-500.0,9.969e-05,2]
[348635152,1736692235176,-500.0,9.969e-05,2]
[348635153,1736692235187,-830.72,9.969e-05,2]
[348635154,1736692235197,-500.0,9.969e-05,2]
[348635155,1736692235207,-794.75,9.969e-05,2]
[348635156,1736692235216,-500.0,9.969e-05,2]
[348635157,1736692235225,-844.22,9.969e-05,2]
[348635158,1736692235234,-500.0,9.969e-05,2]
[348635159,1736692235244,-539.63,9.969e-05,2]
[348635160,1736692235253,-500.0,9.969e-05,2]
[348635161,1736692235263,-500.0,9.969e-05,2]
[348635162,1736692235272,-639.71,9.969e-05,2]
[348635163,1736692235282,-500.0,9.969e-05,2]
[348635164,1736692235291,-500.0,9.969e-05,2]
[348635165,1736692235300,-500.0,9.969e-05,2]
[348635166,1736692235309,-500.0,9.969e-05,2]
[348635167,1736692235319,-3149.033196,9.97e-05,2]
[348635168,1736692235329,-500.0,9.97e-05,2]
[348635169,1736692235339,-859.07,9.97e-05,2]
[348635170,1736692235349,-625.98,9.97e-05,2]
[348635171,1736692235358,-916.02,9.97e-05,2]
[348635172,1736692235368,-1279.9,9.97e-05,2]
[348635173,1736692235378,-1208.72,9.97e-05,2]
[348635174,1736692235388,-1869.5,9.97e-05,2]
[348635175,1736692235398,-5112.05,9.97e-05,2]
[348635176,1736692235407,-904.49,9.97e-05,2]
[348635177,1736692235416,-603.88,9.97e-05,2]
[348635178,1736692235426,-651.16,9.97e-05,2]
[348635179,1736692235437,-769.06,9.97e-05,2]
[348635180,1736692235447,-1820.45,9.97e-05,2]
[348635181,1736692235456,-500.0,9.97e-05,2]
[348635182,1736692235465,-500.0,9.97e-05,2]
[348635183,1736692235475,-759.44,9.97e-05,2]
[348635184,1736692235487,-1788.74,9.97e-05,2]
[348635185,1736692235498,-975.39,9.97e-05,2]
[348635186,1736692235507,-1699.0,9.97e-05,2]
[348635187,1736692235517,-1294.26,9.97e-05,2]
[348635188,1736692235525,-500.0,9.97e-05,2]
[348635189,1736692235535,-500.0,9.97e-05,2]
[348635190,1736692235544,-1000.0,9.97e-05,2]
[348635191,1736692235553,-506.41337132,9.97e-05,2]
[348635192,1736692235563,-500.0,9.972e-05,2]
[348635193,1736692235573,-500.81693741,9.972e-05,2]
[348635194,1736692235582,-500.83393922,9.972e-05,2]
[348635195,1736692235591,-350.44844237,9.972e-05,2]
[348635196,1736692235600,-501.03109747,9.972e-05,2]
[348635197,1736692235609,-500.49234578,9.972e-05,2]
[348635198,1736692235618,-501.08004424,9.972e-05,2]
[348635199,1736692235628,-603.81872215,9.972e-05,2]
[348635200,1736692235636,-501.1752285,9.972e-05,2]
[348635201,1736692235646,-500.0,9.972e-05,2]
[348635202,1736692235655,-500.0,9.972e-05,2]
[348635203,1736692235664,-500.0,9.972e-05,2]
[348635204,1736692235673,-610.641459,9.972e-05,2]
[348635205,1736692235682,-500.47567859,9.972e-05,2]
[348635206,1736692235691,-498.46236028,9.972e-05,2]
[348635207,1736692235700,-500.20044793,9.972e-05,2]
[348635208,1736692235709,-500.0,9.972e-05,2]
[348635209,1736692235718,-500.39228216,9.972e-05,2]
[348635210,1736692235727,-500.73460745,9.972e-05,2]
[348635211,1736692235736,-501.40447644,9.972e-05,2]
[348635212,1736692235745,-500.0,9.972e-05,2]
[348635213,1736692235754,-500.0,9.972e-05,2]
[348635214,1736692235764,-500.45105783,9.972e-05,2]
[348635215,1736692235773,-500.0,9.972e-05,2]
[348635216,1736692235782,-500.0,9.972e-05,2]
[348635217,1736692235791,-501.52199765,9.972e-05,2]
[348635218,1736692235799,-501.55797535,9.972e-05,2]
[348635219,1736692235808,-500.0,9.972e-05,2]
[348635220,1736692235817,-500.0,9.972e-05,2]
[348635221,1736692235827,-500.0,9.972e-05,2]
[348635222,1736692235836,-500.0,9.972e-05,2]
[348635223,1736692235844,-500.90465725,9.972e-05,2]
[348635224,1736692235854,-501.17877521,9.972e-05,2]
[348635225,1736692235863,-501.2773116,9.972e-05,2]
[348635226,1736692235872,-500.51172738,9.972e-05,2]
[348635227,1736692235882,-502.69811503,9.972e-05,2]
[348635228,1736692235891,-514.86,9.972e-05,2]
[348635229,1736692235900,-500.0,9.972e-05,2]
[348635230,1736692235911,-2532.23,9.972e-05,2]
[348635231,1736692235921,-231.84775067,9.972e-05,2]
[348635232,1736692236421,-268.15224933,9.972e-05,2]
[348635233,1736692236431,-500.0,9.972e-05,2]
[348635234,1736692236440,-949.56,9.972e-05,2]
[348635235,1736692236449,-317.91467205,9.972e-05,2]
[348635236,1736692236458,-354.24233617,9.972e-05,2]
[348635237,1736692236468,-500.0,9.972e-05,2]
[348635238,1736692236478,-163.13570968,9.973e-05,2]
[348635239,1736692236487,-500.0,9.973e-05,2]
[348635240,1736692236496,-1265.14,9.973e-05,2]
[348635241,1736692236505,-1101.43,9.974e-05,2]
[348635242,1736692236514,-2872.77,9.974e-05,2]
[348635243,1736692236524,-1314.83,9.974e-05,2]
[348635244,1736692236534,-2023.04,9.974e-05,2]
[348635245,1736692236543,-1113.03,9.974e-05,2]
[348635246,1736692236552,-1703.14,9.974e-05,2]
[348635247,1736692236561,-500.0,9.974e-05,2]
[348635248,1736692236572,-754.58,9.974e-05,2]
[348635249,1736692236581,-1834.65,9.974e-05,2]
[348635250,1736692236590,-750.57,9.974e-05,2]
[348635251,1736692236599,-651.36,9.974e-05,2]
[348635252,1736692236608,-619.79,9.974e-05,2]
[348635253,1736692236618,-500.0,9.974e-05,2]
[348635254,1736692236628,-3149.033196,9.975e-05,2]
[348635255,1736692236639,-500.0,9.976e-05,2]
[348635256,1736692236650,-7847.90186359,9.98e-05,2]
[348635257,1736692236659,-3149.033196,9.984e-05,2]
[348635258,1736692236668,-500.0,9.984e-05,2]
[348635259,1736692236677,-500.0,9.984e-05,2]
[348635260,1736692236686,-3149.033196,9.984e-05,2]
[348635261,1736692236696,-500.0,9.987e-05,2]
[348635262,1736692236707,-3149.033196,9.989e-05,2]
[348635263,1736692236718,-3149.033196,9.995e-05,2]
[348635264,1736692236727,-21705.59938815,9.998e-05,3]
[348635265,1736692236739,-32024.00106873,9.998e-05,3]
[348635266,1736692236752,-4642.78146411,9.998e-05,3]
[348635267,1736692236762,-500.0,9.999e-05,2]
[348635268,1736692236771,-395.40844161,9.999e-05,2]
[348635269,1736692236780,-211.84,0.0001,2]
[348635270,1736692236789,-3500.0,0.0001,2]
[348635271,1736692236801,-174.04,0.0001,2]
[348635272,1736692236810,-500.0,0.0001,2]
[348635273,1736692236820,-70096.92377142,0.0001,2]
[348635274,1736692236839,-397057.49352519,0.0001,2]
[348635275,1736692236850,-19321.2386941,0.0001,2]
[348635280,1736692238150,-1422.01,9.967e-05,2]
[348635281,1736692238162,-455.61,9.968e-05,2]
[348635282,1736692238313,-53.19,9.968e-05,2]
[348635283,1736692238327,-857.8058,9.97e-05,2]
[348635284,1736692238339,-93.11828359,9.974e-05,2]
[348635285,1736692238353,-406.88171641,9.974e-05,2]
[348635286,1736692238365,-500.0,9.989e-05,2]
[348635287,1736692238376,-500.0,9.989e-05,2]
[348635288,1736692238388,-500.0,9.989e-05,2]
[348635289,1736692238400,-500.0,9.991e-05,2]
[348635290,1736692238412,-500.0,9.992e-05,2]
[348635292,1736692238423,-1454.41136779,0.0001,2]
[348635294,1736692238438,-475.95,0.0001,2]
[348635385,1736692240463,-1039.23,9.967e-05,2]
[348635386,1736692240474,-126.12320515,9.967e-05,2]
[348635387,1736692240485,-285.696252,9.967e-05,2]
[348635388,1736692240497,-482.83054285,9.967e-05,2]
[348635389,1736692240506,-500.0,9.996e-05,2]
[348635390,1736692240516,-64091.95803155,0.0001,2]
[348635391,1736692240535,-1277.48,0.0001,2]
[348635392,1736692240574,-3056.254288,0.0001,2]
[348635680,1736692243148,-737.02,9.97e-05,2]
[348635683,1736692243157,-388.26079495,9.996e-05,2]
[348635686,1736692243168,-111.73920505,9.996e-05,2]
[348635688,1736692243178,-346.26214078,9.996e-05,2]
[348635691,1736692243189,-78.07785922,9.996e-05,2]
[348635693,1736692243198,-2751.10775243,0.0001,2]
[348635696,1736692243209,-975.06641355,0.0001,2]
[348635699,1736692243220,-1723.09854879,0.0001,2]
[348635704,1736692243288,-4791.17830158,0.0001,2]
[348635705,1736692243300,-4479.20749108,0.0001,2]
[348635707,1736692243378,-12080.77202302,0.0001,2]
[348635708,1736692243399,-284.3,0.0001,2]
[348635709,1736692243411,-3191.0,0.0001,2]
[348635710,1736692243422,-452.9,0.0001,2]
[348635711,1736692243433,-428.9,0.0001,2]
[348635712,1736692243448,-535.40047792,0.0001,2]
[348635713,1736692243462,-1558.32946893,0.0001,2]
[348635714,1736692243473,-273.88727203,0.0001,2]
[348635716,1736692243528,-779147.28117316,0.0001,2]
[348635732,1736692246108,-301.00079108,9.967e-05,2]
[348635733,1736692246336,-198.99920892,9.967e-05,2]
[348635734,1736692246346,-500.0,9.968e-05,2]
[348635735,1736692246355,-500.0,9.968e-05,2]
[348635736,1736692246365,-31429.77191748,0.0001,2]
[348635737,1736692246384,-1522.31378727,0.0001,2]
[348635738,1736692246743,-5368.25816041,0.0001,2]
[348635739,1736692364293,991.96,8.219e-05,2]
[348635743,1736693126720,2000.0,8.942e-05,2]
[348635744,1736693173157,250.0,8.909e-05,2]
[348635751,1736693279844,250.0,8.942e-05,2]
[348635756,1736693335355,942.36,8.219e-05,2]
[348635782,1736693432529,-1000.0,8.971e-05,2]
[348635783,1736693432539,-313.5,8.976e-05,2]
[348635784,1736693432549,-163.4,8.976e-05,2]
[348635785,1736693432559,-300.0,9.107e-05,2]
[348635786,1736693432569,-200.0,9.108e-05,2]
[348635787,1736693432578,-8382.89207868,9.108e-05,2]
[348635788,1736693432590,-4321.55792132,9.108e-05,2]
[348635789,1736693432601,-3561.07,9.113e-05,2]
[348635790,1736693432612,-160.61,9.128e-05,2]
[348635791,1736693432621,-150.0,9.205e-05,2]
[348635792,1736693432631,-353.47,9.244e-05,2]
[348635793,1736693432641,-1539.46,9.367e-05,2]
[348635794,1736693432650,-311.5978,9.867e-05,2]
[348635795,1736693432659,-2500.0,9.867e-05,2]
[348635796,1736693432670,-500.0,9.966e-05,2]
[348635797,1736693432680,-606.66,9.966e-05,2]
[348635798,1736693432689,-500.0,9.966e-05,2]
[348635799,1736693432698,-576.91595153,9.966e-05,2]
[348635800,1736693432708,-500.0,9.966e-05,2]
[348635801,1736693432717,-500.0,9.966e-05,2]
[348635802,1736693432727,-500.0,9.966e-05,2]
[348635803,1736693432739,-500.0,9.966e-05,2]
[348635804,1736693432750,-500.0,9.966e-05,2]
[348635805,1736693432759,-500.0,9.966e-05,2]
[348635806,1736693432769,-546.56901685,9.966e-05,2]
[348635807,1736693432779,-500.0,9.966e-05,2]
[348635808,1736693432788,-500.0,9.966e-05,2]
[348635809,1736693432799,-1052.63,9.966e-05,2]
[348635810,1736693432810,-500.0,9.966e-05,2]
[348635811,1736693432819,-500.0,9.966e-05,2]
[348635812,1736693432829,-500.0,9.966e-05,2]
[348635813,1736693432840,-500.0,9.966e-05,2]
[348635814,1736693432850,-500.0,9.966e-05,2]
[348635815,1736693432861,-160.41276557,9.966e-05,2]
[348635816,1736693432871,-500.0,9.966e-05,2]
[348635817,1736693432880,-174.99972032,9.966e-05,2]
[348635818,1736693432890,-500.0,9.966e-05,2]
[348635819,1736693432900,-500.0,9.966e-05,2]
[348635820,1736693432910,-500.0,9.966e-05,2]
[348635821,1736693432920,-500.0,9.966e-05,2]
[348635822,1736693432929,-500.0,9.966e-05,2]
[348635823,1736693432939,-500.0,9.966e-05,2]
[348635824,1736693432949,-500.0,9.966e-05,2]
[348635826,1736693432960,-500.0,9.966e-05,2]
[348635828,1736693432970,-500.0,9.966e-05,2]
[348635830,1736693432980,-842.03,9.966e-05,2]
[348635831,1736693432993,-500.0,9.966e-05,2]
[348635832,1736693433003,-500.0,9.966e-05,2]
[348635834,1736693433014,-500.0,9.966e-05,2]
[348635835,1736693433024,-500.0,9.966e-05,2]
[348635836,1736693433035,-500.0,9.966e-05,2]
[348635837,1736693433045,-505.78953041,9.966e-05,2]
[348635838,1736693433056,-500.0,9.966e-05,2]
[348635839,1736693433066,-871.99,9.966e-05,2]
[348635840,1736693433076,-500.0,9.966e-05,2]
[348635841,1736693433086,-500.0,9.966e-05,2]
[348635843,1736693433096,-500.0,9.966e-05,2]
[348635845,1736693433107,-2229.62,9.966e-05,2]
[348635846,1736693433117,-508.64144669,9.966e-05,2]
[348635847,1736693433127,-500.0,9.966e-05,2]
[348635848,1736693433137,-500.0,9.966e-05,2]
[348635849,1736693433147,-342.24405032,9.966e-05,2]
[348635852,1736693433158,-788.76,9.966e-05,2]
[348635854,1736693433167,-500.0,9.966e-05,2]
[348635855,1736693433177,-500.0,9.966e-05,2]
[348635858,1736693433187,-943.67,9.966e-05,2]
[348635861,1736693433196,-500.0,9.966e-05,2]
[348635862,1736693433206,-500.0,9.966e-05,2]
[348635863,1736693433216,-494.35946946,9.966e-05,2]
[348635865,1736693433226,-336.2301917,9.966e-05,2]
[348635866,1736693433236,-2070.72,9.966e-05,2]
[348635867,1736693433246,-169.37553502,9.966e-05,2]
[348635868,1736693433256,-500.0,9.966e-05,2]
[348635869,1736693433265,-500.0,9.966e-05,2]
[348635870,1736693433275,-5005.07,9.966e-05,2]
[348635871,1736693433284,-431.15598709,9.966e-05,2]
[348635872,1736693433293,-576.20814722,9.966e-05,2]
[348635873,1736693433306,-885.15185278,9.966e-05,2]
[348635874,1736693433316,-500.0,9.966e-05,2]
[348635876,1736693433327,-503.53300013,9.966e-05,2]
[348635878,1736693433336,-500.0,9.966e-05,2]
[348635880,1736693433347,-500.0,9.966e-05,2]
[348635882,1736693433357,-741.31,9.966e-05,2]
[348635884,1736693433368,-500.0,9.966e-05,2]
[348635886,1736693433378,-500.0,9.966e-05,2]
[348635888,1736693433387,-500.0,9.966e-05,2]
[348635889,1736693433397,-500.0,9.966e-05,2]
[348635890,1736693433406,-500.0,9.966e-05,2]
[348635892,1736693433416,-507.71131491,9.966e-05,2]
[348635894,1736693433426,-1014.9,9.966e-05,2]
[348635895,1736693433435,-382.81377443,9.966e-05,2]
[348635896,1736693433445,-500.0,9.966e-05,2]
[348635897,1736693433455,-1993.63,9.966e-05,2]
[348635898,1736693433464,-500.0,9.966e-05,2]
[348635899,1736693433474,-500.0,9.966e-05,2]
[348635900,1736693433483,-399.75935695,9.966e-05,2]
[348635901,1736693433493,-503.8695343,9.966e-05,2]
[348635902,1736693433503,-500.0,9.966e-05,2]
[348635903,1736693433512,-935.61,9.966e-05,2]
[348635904,1736693433522,-500.0,9.966e-05,2]
[348635905,1736693433532,-500.0,9.966e-05,2]
[348635906,1736693433542,-523.55,9.966e-05,2]
[348635907,1736693433552,-507.10031861,9.966e-05,2]
[348635908,1736693433562,-500.0,9.966e-05,2]
[348635909,1736693433571,-1351.48,9.966e-05,2]
[348635910,1736693433581,-500.0,9.966e-05,2]
[348635911,1736693433590,-1914.92,9.966e-05,2]
[348635912,1736693433600,-500.0,9.966e-05,2]
[348635913,1736693433611,-2024.3,9.966e-05,2]
[348635914,1736693433620,-500.0,9.966e-05,2]
[348635915,1736693433630,-500.0,9.966e-05,2]
[348635916,1736693433640,-500.0,9.966e-05,2]
[348635917,1736693433650,-500.0,9.966e-05,2]
[348635918,1736693433659,-505.80929571,9.966e-05,2]
[348635919,1736693433669,-1177.8,9.966e-05,2]
[348635920,1736693433679,-756.91,9.966e-05,2]
[348635921,1736693433688,-508.14541794,9.966e-05,2]
[348635922,1736693433698,-1795.04,9.966e-05,2]
[348635923,1736693433708,-500.0,9.966e-05,2]
[348635924,1736693433717,-500.0,9.966e-05,2]
[348635925,1736693433727,-500.0,9.966e-05,2]
[348635926,1736693433737,-500.0,9.966e-05,2]
[348635927,1736693433746,-500.0,9.966e-05,2]
[348635928,1736693433756,-500.0,9.966e-05,2]
[348635929,1736693433765,-1104.52,9.966e-05,2]
[348635930,1736693433777,-500.0,9.966e-05,2]
[348635931,1736693433788,-827.64,9.966e-05,2]
[348635932,1736693433798,-500.0,9.966e-05,2]
[348635933,1736693433808,-500.0,9.966e-05,2]
[348635934,1736693433817,-576.44,9.966e-05,2]
[348635935,1736693433827,-2615.86,9.966e-05,2]
[348635936,1736693433836,-500.0,9.966e-05,2]
[348635937,1736693433846,-537.51382555,9.966e-05,2]
[348635938,1736693433858,-1725.33,9.966e-05,2]
[348635939,1736693433867,-502.16021359,9.966e-05,2]
[348635940,1736693433877,-656.67,9.966e-05,2]
[348635941,1736693433887,-500.0,9.966e-05,2]
[348635942,1736693433896,-311.5,9.966e-05,2]
[348635943,1736693433907,-500.0,9.966e-05,2]
[348635944,1736693433916,-354.09213963,9.966e-05,2]
[348635945,1736693433926,-380.84563025,9.966e-05,2]
[348635946,1736693433935,-500.0,9.966e-05,2]
[348635947,1736693433945,-500.0,9.966e-05,2]
[348635948,1736693433955,-500.0,9.966e-05,2]
[348635949,1736693433964,-509.16131839,9.966e-05,2]
[348635950,1736693433973,-500.0,9.966e-05,2]
[348635951,1736693433984,-853.49,9.966e-05,2]
[348635952,1736693433997,-500.0,9.966e-05,2]
[348635953,1736693434007,-500.0,9.966e-05,2]
[348635954,1736693434017,-243.52500233,9.966e-05,2]
[348635955,1736693434027,-332.2963978,9.966e-05,2]
[348635956,1736693434036,-500.0,9.966e-05,2]
[348635957,1736693434046,-500.0,9.966e-05,2]
[348635958,1736693434056,-623.30349524,9.966e-05,2]
[348635959,1736693434065,-500.0,9.966e-05,2]
[348635960,1736693434075,-1153.25,9.966e-05,2]
[348635961,1736693434084,-500.0,9.966e-05,2]
[348635962,1736693434094,-500.0,9.966e-05,2]
[348635963,1736693434103,-1201.72,9.966e-05,2]
[348635964,1736693434113,-500.37600263,9.966e-05,2]
[348635965,1736693434123,-500.0,9.966e-05,2]
[348635966,1736693434132,-500.0,9.966e-05,2]
[348635967,1736693434142,-500.0,9.966e-05,2]
[348635968,1736693434151,-511.67,9.966e-05,2]
[348635969,1736693434160,-500.0,9.966e-05,2]
[348635970,1736693434170,-500.0,9.966e-05,2]
[348635971,1736693434179,-500.0,9.966e-05,2]
[348635972,1736693434189,-500.0,9.966e-05,2]
[348635973,1736693434198,-500.0,9.966e-05,2]
[348635974,1736693434208,-898.02,9.966e-05,2]
[348635975,1736693434217,-1529.92,9.966e-05,2]
[348635976,1736693434227,-500.0,9.966e-05,2]
[348635977,1736693434236,-500.0,9.966e-05,2]
[348635978,1736693434245,-500.0,9.966e-05,2]
[348635979,1736693434254,-500.84901607,9.966e-05,2]
[348635980,1736693434264,-504.06156845,9.966e-05,2]
[348635981,1736693434273,-511.92,9.966e-05,2]
[348635982,1736693434282,-500.0,9.966e-05,2]
[348635983,1736693434291,-792.58,9.966e-05,2]
[348635984,1736693434300,-500.0,9.966e-05,2]
[348635985,1736693434310,-500.89917465,9.966e-05,2]
[348635986,1736693434319,-500.0,9.966e-05,2]
[348635987,1736693434329,-500.0,9.966e-05,2]
[348635988,1736693434339,-314.84150211,9.966e-05,2]
[348635989,1736693434348,-500.0,9.967e-05,2]
[348635990,1736693434358,-500.0,9.967e-05,2]
[348635991,1736693434367,-500.0,9.967e-05,2]
[348635992,1736693434377,-500.0,9.967e-05,2]
[348635993,1736693434386,-563.76,9.967e-05,2]
[348635994,1736693434396,-502.47791767,9.967e-05,2]
[348635995,1736693434406,-500.0,9.967e-05,2]
[348635996,1736693434415,-500.0,9.967e-05,2]
[348635997,1736693434425,-500.0,9.967e-05,2]
[348635998,1736693434434,-501.56094458,9.967e-05,2]
[348635999,1736693434443,-500.0,9.967e-05,2]
[348636000,1736693434452,-500.0,9.967e-05,2]
[348636001,1736693434462,-500.0,9.967e-05,2]
[348636002,1736693434471,-509.34613617,9.967e-05,2]
[348636003,1736693434480,-500.0,9.967e-05,2]
[348636004,1736693434490,-500.0,9.967e-05,2]
[348636005,1736693434499,-500.0,9.967e-05,2]
[348636006,1736693434509,-500.0,9.967e-05,2]
[348636007,1736693434519,-500.0,9.967e-05,2]
[348636008,1736693434528,-500.0,9.967e-05,2]
[348636009,1736693434538,-500.0,9.967e-05,2]
[348636010,1736693434547,-501.89546982,9.967e-05,2]
[348636011,1736693434557,-500.0,9.967e-05,2]
[348636012,1736693434566,-550.71,9.967e-05,2]
[348636013,1736693434575,-500.0,9.967e-05,2]
[348636014,1736693434585,-493.54826469,9.967e-05,2]
[348636015,1736693434594,-500.0,9.967e-05,2]
[348636016,1736693434603,-500.0,9.967e-05,2]
[348636017,1736693434614,-500.0,9.967e-05,2]
[348636018,1736693434623,-500.0,9.967e-05,2]
[348636019,1736693434633,-500.0,9.967e-05,2]
[348636020,1736693434642,-500.0,9.967e-05,2]
[348636021,1736693434652,-500.0,9.967e-05,2]
[348636022,1736693434661,-500.0,9.967e-05,2]
[348636023,1736693434671,-500.0,9.967e-05,2]
[348636024,1736693434680,-500.0,9.967e-05,2]
[348636025,1736693434689,-500.0,9.967e-05,2]
[348636026,1736693434698,-500.0,9.967e-05,2]
[348636027,1736693434708,-500.0,9.967e-05,2]
[348636028,1736693434718,-500.0,9.967e-05,2]
[348636029,1736693434728,-500.0,9.967e-05,2]
[348636030,1736693434739,-500.0,9.967e-05,2]
[348636031,1736693434748,-500.0,9.967e-05,2]
[348636032,1736693434758,-500.0,9.967e-05,2]
[348636033,1736693434767,-638.17365526,9.967e-05,2]
[348636034,1736693434777,-500.0,9.967e-05,2]
[348636035,1736693434787,-500.0,9.967e-05,2]
[348636036,1736693434796,-500.0,9.967e-05,2]
[348636037,1736693434806,-500.0,9.967e-05,2]
[348636038,1736693434816,-170.7284712,9.967e-05,2]
[348636039,1736693435380,-196.32445441,9.967e-05,2]
[348636040,1736693435390,-500.0,9.967e-05,2]
[348636041,1736693435399,-817.41,9.967e-05,2]
[348636042,1736693435410,-500.0,9.967e-05,2]
[348636043,1736693435419,-500.0,9.967e-05,2]
[348636044,1736693435428,-500.0,9.967e-05,2]
[348636045,1736693435437,-500.0,9.967e-05,2]
[348636046,1736693435446,-500.0,9.967e-05,2]
[348636047,1736693435456,-500.0,9.967e-05,2]
[348636048,1736693435465,-500.0,9.967e-05,2]
[348636049,1736693435474,-500.0,9.967e-05,2]
[348636050,1736693435483,-500.0,9.967e-05,2]
[348636051,1736693435493,-500.0,9.967e-05,2]
[348636052,1736693435502,-524.91,9.967e-05,2]
[348636053,1736693435511,-132.99228319,9.967e-05,2]
[348636054,1736693435547,-500.0,9.966e-05,2]
[348636055,1736693435558,-367.00771681,9.967e-05,2]
[348636056,1736693435567,-500.0,9.967e-05,2]
[348636057,1736693435576,-500.0,9.967e-05,2]
[348636058,1736693435585,-500.0,9.967e-05,2]
[348636059,1736693435595,-500.0,9.967e-05,2]
[348636060,1736693435604,-500.0,9.967e-05,2]
[348636061,1736693435614,-500.0,9.967e-05,2]
[348636062,1736693435623,-500.0,9.967e-05,2]
[348636063,1736693435633,-500.0,9.967e-05,2]
[348636064,1736693435642,-500.0,9.967e-05,2]
[348636065,1736693435652,-500.0,9.967e-05,2]
[348636066,1736693435662,-500.0,9.967e-05,2]
[348636067,1736693435672,-500.0,9.967e-05,2]
[348636068,1736693435681,-500.0,9.967e-05,2]
[348636069,1736693435691,-489.72890854,9.967e-05,2]
[348636070,1736693435700,-500.0,9.967e-05,2]
[348636071,1736693435709,-500.0,9.967e-05,2]
[348636072,1736693435718,-500.0,9.967e-05,2]
[348636073,1736693435728,-500.0,9.967e-05,2]
[348636074,1736693435738,-500.0,9.967e-05,2]
[348636075,1736693435747,-500.0,9.967e-05,2]
[348636076,1736693435757,-500.0,9.967e-05,2]
[348636077,1736693435766,-500.0,9.967e-05,2]
[348636078,1736693435776,-500.0,9.967e-05,2]
[348636079,1736693435785,-199.46862163,9.967e-05,2]
[348636080,1736693435795,-501.70513783,9.967e-05,2]
[348636081,1736693435804,-500.0,9.967e-05,2]
[348636082,1736693435813,-500.0,9.967e-05,2]
[348636083,1736693435823,-535.18,9.967e-05,2]
[348636084,1736693435832,-500.0,9.967e-05,2]
[348636085,1736693435842,-500.0,9.967e-05,2]
[348636086,1736693435851,-500.0,9.967e-05,2]
[348636087,1736693435860,-500.0,9.967e-05,2]
[348636088,1736693435870,-500.0,9.967e-05,2]
[348636089,1736693435879,-500.0,9.967e-05,2]
[348636090,1736693435888,-500.0,9.967e-05,2]
[348636091,1736693435898,-500.0,9.967e-05,2]
[348636092,1736693435907,-500.0,9.967e-05,2]
[348636093,1736693435916,-500.0,9.967e-05,2]
[348636094,1736693435926,-500.0,9.967e-05,2]
[348636095,1736693435935,-500.0,9.967e-05,2]
[348636096,1736693435944,-502.4254496,9.967e-05,2]
[348636097,1736693435954,-500.0,9.967e-05,2]
[348636098,1736693435963,-500.0,9.967e-05,2]
[348636099,1736693435972,-500.0,9.967e-05,2]
[348636100,1736693435983,-618.26,9.967e-05,2]
[348636101,1736693435995,-500.0,9.967e-05,2]
[348636102,1736693436005,-500.0,9.967e-05,2]
[348636103,1736693436014,-500.0,9.967e-05,2]
[348636104,1736693436023,-500.0,9.967e-05,2]
[348636105,1736693436032,-501.67454617,9.967e-05,2]
[348636106,1736693436042,-500.0,9.967e-05,2]
[348636107,1736693436051,-500.0,9.967e-05,2]